Cogmind - Beta 14 @@@ ROGUE MODE // 2025.01.12 @ 23:57:24 // AFD2020/Player2 Player: KTG-V3 Result: Destroyed by Player 2 with Heavy Laser Performance ------------- Evolutions (4) 2000 Regions Visited (13) 2600 Robots Destroyed (131) 655 Value Destroyed (4705) 4705 Prototype IDs (36) 720 Alien Tech Used (0) 0 Bonus (2063) 2063 TOTAL SCORE: 12743 Bonus ------- High Alert Combat Kills 808 Follower Combat Kills 3193 Aligned with FarCom 300 Friendly Fire -2238 Cogmind --------- Core Integrity 0/850 Matter 198/300 Energy 160/160 System Corruption 0% Temperature Cool (9) Movement Hovering (52) Location -6/Lower Caves Parts ------- > --- POWER (1) -------- Light Nuclear Core > --- PROPULSION (5) --- Gravmag System Gravmag Array Gravmag Array > --- UTILITY (7) ------ Improved Cooling System Large Storage Unit Enhanced Optical Array Advanced Targeting Computer Hacking Suite Hacking Suite > --- WEAPON (2) ------- Assault Cannon Magnetic Acceleration Cannon > --- INVENTORY (15) --- Light Angular Momentum Engine Improved Hover Unit Faulty Aerolev Unit Advanced Heat Sink Improved Cooling System Superbattery (1500) Matter Compressor (0) Transmission Jammer Layered Light Armor Plating Hacking Suite Authchip [Device] Gauss Cannon Precision Grenade Launcher Peak State ------------ > --- POWER ------------ Light Angular Momentum Engine > --- PROPULSION ------- Gravmag System Gravmag Array Gravmag Array > --- UTILITY ---------- Large Storage Unit Enhanced Optical Array Recoil Stabilizer Thermal Defense Suite Hacking Suite Hacking Suite System Shield > --- WEAPON ----------- Gauss Cannon Gauss Cannon > --- INVENTORY -------- Light Nuclear Core Improved Hover Unit Aerolev Unit Gravmag Array Improved Cooling System Superbattery Matter Compressor Advanced Targeting Computer Transmission Jammer Hacking Suite Authchip [Propulsion] Authchip [Device] Magnetic Acceleration Cannon Precision Grenade Launcher [Rating: 67] Favorites ----------- Power Nuclear Core Engine Ion Engine Power Core Nuclear Core Propulsion Light Treads Treads Light Treads Leg Carbon-fiber Leg Wheel Armored Huge Wheel Hover Unit Gravmag Array Flight Unit Improved VTOL Module Utility Hacking Suite Device Seismic Detector Storage Huge Storage Unit Processor Transport Network Coupler Hackware Hacking Suite Protection Improved Medium Armor Plating Weapon Advanced Beam Rifle Energy Gun Advanced Beam Rifle Ballistic Gun Assault Rifle Ballistic Cannon Gauss Cannon Launcher Precision Grenade Launcher Impact Weapon Heavy Mace Build | -11 -10 -10 -10 -9 -8 -7 -7 -7 -7 -6 -6 -6 -6 ------- Run | Yrd Mat Min Exi Min Mat Fac Low Low Zio Pro Fac Low Low Slots Evolved 8 | . . . . . 4 2 . . . . 2 . . Power . | . . . . . . . . . . . . . . Propulsion 3 | . . . . . 1 1 . . . . 1 . . Utility 5 | . . . . . 3 1 . . . . 1 . . Weapon . | . . . . . . . . . . . . . . Parts Attached 178 | 6 8 3 . 5 40 26 3 4 12 27 41 3 . Power 14 | 1 . . . . 3 . . . 2 2 6 . . Engine 8 | 1 . . . . 2 . . . . 1 4 . . Core 6 | . . . . . 1 . . . 2 1 2 . . Reactor . | . . . . . . . . . . . . . . Propulsion 46 | 2 1 . . 1 8 11 1 . 4 9 8 1 . Treads 24 | 2 1 . . 1 7 10 1 . . 2 . . . Leg 4 | . . . . . . . . . . 4 . . . Wheel 1 | . . . . . . . . . . 1 . . . Hover 16 | . . . . . . 1 . . 4 2 8 1 . Flight 1 | . . . . . 1 . . . . . . . . Utility 46 | 1 3 . . 1 11 10 . 1 2 4 13 . . Device 20 | . . . . 1 6 4 . . . 3 6 . . Storage 5 | 1 2 . . . . . . . 1 . 1 . . Processor 7 | . 1 . . . 2 1 . . 1 . 2 . . Hackware 5 | . . . . . . 3 . . . . 2 . . Protection 9 | . . . . . 3 2 . 1 . 1 2 . . Artifact . | . . . . . . . . . . . . . . Weapon 72 | 2 4 3 . 3 18 5 2 3 4 12 14 2 . Energy Gun 11 | . . . . . 5 2 1 1 1 . 1 . . Energy Cannon . | . . . . . . . . . . . . . . Ballistic Gun 14 | 2 . 1 . 2 7 1 . . . 1 . . . Ballistic Cannon 28 | . 3 1 . . 1 1 . 2 2 5 12 1 . Launcher 12 | . 1 1 . . 4 . 1 . . 3 1 1 . Special Weapon . | . . . . . . . . . . . . . . Impact Weapon 7 | . . . . 1 1 1 . . 1 3 . . . Slashing Weapon . | . . . . . . . . . . . . . . Piercing Weapon . | . . . . . . . . . . . . . . Special Melee Weapon . | . . . . . . . . . . . . . . Unidentified Prototypes 8 | . . 1 . . 4 . . . . . 3 . . Parts Lost 29 | . . . . 1 5 3 . . . 11 8 1 . Power 2 | . . . . . . . . . . 1 1 . . Propulsion 13 | . . . . 1 1 1 . . . 7 2 1 . Utility 9 | . . . . . 2 2 . . . 2 3 . . Weapon 5 | . . . . . 2 . . . . 1 2 . . Highest Loss Streak 7 | . . . . 1 2 2 . . . 4 7 1 . To Critical Strikes . | . . . . . . . . . . . . . . Average Slot Usage (%) 95 | . 98 100 100 100 96 95 100 99 98 86 83 80 80 Engine 5 | . 14 14 14 14 8 . . . . 1 4 . . Core 3 | . . . . . . 7 7 7 7 4 1 6 6 Treads 22 | . 28 28 28 28 26 28 23 30 26 6 . . . Hover 3 | . . . . . . . 6 . 3 6 16 20 20 Device 7 | . . . . 12 17 12 7 7 7 5 6 6 6 Storage 8 | . 14 14 14 14 9 7 7 7 7 7 6 6 6 Processor 6 | . 12 14 14 1 8 6 . . . 7 9 13 13 Hackware 11 | . . . . . . 8 23 23 23 23 17 13 13 Protection 3 | . . . . . 7 6 7 7 6 . 2 . . Energy Gun 4 | . . . . . 8 11 6 7 5 . . . . Ballistic Gun 6 | . 17 14 14 24 8 2 7 . . 1 . . . Ballistic Cannon 6 | . 10 13 14 3 . . . 6 6 3 12 12 13 Peak Build Rating 67 | 6 9 12 11 11 30 48 48 44 48 50 67 62 59 Average Rating 33 | 5 7 9 10 10 24 39 46 43 43 38 62 59 59 On Entrance 30 | . 6 9 10 11 10 29 47 44 44 45 50 61 59 Naked Turns . | . . . . . . . . . . . . . . Heaviest Build 117 | 13 90 90 90 91 99 108 101 117 117 42 53 42 40 Greatest Support 88 | 40 40 40 40 40 60 88 80 80 80 48 49 49 49 Greatest Overweight (x) 4 | 1 2 2 2 2 2 1 1 1 2 4 2 . . Average Overweight (x) . | . 1 2 2 2 1 1 1 1 1 . . . . Largest Inventory Capacity 25 | 8 25 25 25 25 25 25 25 25 25 15 15 15 15 Average Capacity 22 | 7 19 25 25 25 25 25 25 25 24 15 15 15 15 Most Carried 25 | 7 24 23 25 24 25 25 25 25 25 15 15 15 13 Average Carried 21 | 4 13 22 23 23 24 24 24 24 23 14 14 14 12 Final Capacity 25 | 8 25 25 25 25 25 25 25 25 15 15 15 15 15 Final Carried 25 | 7 22 23 24 22 25 25 25 25 15 15 15 13 13 Class Distribution -------------------- 46% | Hacker-Mutant 41% | Mutant 12% | Scavenger-Mutant Dominant Class ---------------- Mutant | -10/Materials Mutant | -10/Mines Mutant | -10/Exiles Mutant | -9/Mines Scavenger-Mutant | -8/Materials Mutant | -7/Factory Hacker-Mutant | -7/Lower Caves Hacker-Mutant | -7/Lower Caves Hacker-Mutant | -7/Zion Hacker-Mutant | -6/Proximity Caves Hacker-Mutant | -6/Factory Hacker-Mutant | -6/Lower Caves Hacker-Mutant | -6/Lower Caves Resources | -11 -10 -10 -10 -9 -8 -7 -7 -7 -7 -6 -6 -6 -6 ----------- Run | Yrd Mat Min Exi Min Mat Fac Low Low Zio Pro Fac Low Low Matter Collected 5175 | 288 370 122 26 80 806 225 197 130 137 563 2037 38 156 Remotely 744 | . . . . . 214 63 . . . 467 . . . Salvage Created 4469 | 123 375 123 . 11 1383 361 121 28 . 389 1466 89 . Parts 198 | 6 24 5 . 2 59 13 8 . . 11 69 1 . Haulers Intercepted 9 | . 2 . . . 4 1 . . . . 2 . . Recyclers Shooed 7 | . . . . . 1 2 . . . . 4 . . Parts Field Recycled . | . . . . . . . . . . . . . . Retrieved Matter . | . . . . . . . . . . . . . . Parts Self-Destructed 48 | . . . . . . . 21 . 2 23 . 2 . Prevented 2 | . . . . . . . . . . . . 2 . Kills | -11 -10 -10 -10 -9 -8 -7 -7 -7 -7 -6 -6 -6 -6 ------- Run | Yrd Mat Min Exi Min Mat Fac Low Low Zio Pro Fac Low Low Combat Hostiles Destroyed 87 | . 6 1 . 1 24 7 4 1 . 15 24 4 . Melee 2 | . . . . . . . . . . 1 1 . . Guns 29 | . 2 . . 1 16 6 3 1 . . . . . Cannons 32 | . 4 1 . . 1 . . . . 3 21 2 . AOE 22 | . . . . . 5 1 1 . . 11 2 2 . Classes Destroyed 17 | 2 5 . . 1 5 1 1 . . . 2 . . Worker 7 | 2 1 . . 1 1 . . . . . 2 . . Builder 10 | . 1 . . . 3 . . . . . 6 . . Tunneler 2 | . . . . . . . . . . . 2 . . Hauler 9 | . 2 . . . 4 1 . . . . 2 . . Recycler 6 | 1 1 . . . . 1 . . . . 3 . . Mechanic 2 | . . . . . 1 . . . . . 1 . . Operator 3 | . . . . . 1 1 . . . . 1 . . Watcher 4 | . 1 . . . 2 . . . . . 1 . . Swarmer 16 | . 4 1 . . 1 3 2 . . 3 . 2 . Saboteur 1 | . . . . . . . . . . . 1 . . Grunt 37 | . 2 . . . 14 2 . . . 5 13 1 . Brawler 6 | . . . . . 1 . . . . 2 3 . . Duelist 4 | . . . . . . . 1 . . 3 . . . Sentry 10 | . . . . . 7 . . . . 1 1 1 . Demolisher 1 | . . . . 1 . . . . . . . . . Hunter 8 | . . . . . 1 1 . 1 . 1 4 . . Programmer 4 | . . . . . . 1 1 . . . 2 . . Best Kill Streak 7 | 2 3 1 . 1 7 2 1 1 . 7 6 3 . Combat Bots Only 7 | . 3 1 . 1 5 2 1 1 . 7 3 3 . Max Kills in Single Turn 3 | 1 1 1 . 1 2 1 1 1 . 2 3 1 . Gunslinging . | . . . . . . . . . . . . . . Exploded 2 | . . . . . 2 1 1 . . 2 2 1 . Melee 1 | . . . . . . . . . . 1 1 . . Uniques/NPCs Destroyed 1 | . . 1 . . . . . . . . . . . YI-UF0 (-10/Mines) Combat | -11 -10 -10 -10 -9 -8 -7 -7 -7 -7 -6 -6 -6 -6 -------- Run | Yrd Mat Min Exi Min Mat Fac Low Low Zio Pro Fac Low Low Hostile Shots Fired 515 | . 30 7 . . 106 77 47 1 . 81 139 27 . Missed 190 | . 11 . . . 42 33 23 . . 26 41 14 . Damage Taken 5649 | . 155 62 . 257 1098 689 227 . . 1224 1751 168 18 Core 855 | . 22 . . 39 124 25 . . . 287 322 18 18 Absorbed by Shields 72 | . . . . . . 72 . . . . . . . Ignored by Resistances 11 | . . . . . . 11 . . . . . . . Regen/Repaired (Parts) 155 | . 107 . . . . . . . 15 . 33 . . Core Remaining (%) 50 | 100 . . . 35 45 . . . . 20 . . . Volleys Fired 386 | 7 31 17 . 7 92 38 15 6 . 29 134 8 2 Largest 2 | 2 2 2 . 2 2 2 2 2 . 2 2 2 2 Hottest 122 | 40 55 55 . 40 122 122 89 89 . 96 101 101 97 Shots Fired 718 | 14 61 34 . 14 178 76 28 11 . 40 245 13 4 Gun 374 | 14 40 31 . 14 165 75 25 10 . . . . . Cannon 314 | . 20 3 . . 7 1 . 1 . 25 243 10 4 Launcher 30 | . 1 . . . 6 . 3 . . 15 2 3 . Special . | . . . . . . . . . . . . . . Kinetic 527 | 14 60 34 . 14 85 21 12 5 . 25 243 10 4 Thermal 161 | . . . . . 87 55 13 6 . . . . . Explosive 30 | . 1 . . . 6 . 3 . . 15 2 3 . Electromagnetic . | . . . . . . . . . . . . . . Robot Hit Streak 13 | 2 13 6 . 2 6 7 8 10 . 9 9 7 8 Robot Miss Streak 7 | 2 7 3 . 5 5 3 4 1 . 4 3 1 . Penetration Max 1 | . . . . . 1 . . . . . 1 . . Secondary Targets 5 | . . . . . 4 1 . . . . . . . Max Gunslinging Chain 1 | . . . . . 1 1 . . . . . . . Shots Hit Robots 420 | 4 28 24 . 5 115 51 15 8 . 25 134 9 2 Core Hits 255 | 5 18 7 . 3 72 17 8 2 . 44 72 7 . Critical Kills 1 | . . . . . 1 . . . . . . . . Critical Parts Destroyed 1 | . . . . . 1 . . . . . . . . Critical Strikes 31 | . 1 . . . 9 1 . 1 . 2 15 2 . Burn 9 | . . . . . 7 1 . 1 . . . . . Destroy 2 | . . . . . 2 . . . . . . . . Blast 20 | . 1 . . . . . . . . 2 15 2 . Melee Attacks 8 | . . . . 2 4 1 . . . 1 . . . Impact 8 | . . . . 2 4 1 . . . 1 . . . Slashing . | . . . . . . . . . . . . . . Piercing . | . . . . . . . . . . . . . . Sneak Attacks 1 | . . . . . 1 . . . . . . . . Combat Hostiles . | . . . . . . . . . . . . . . Follow-up Attacks . | . . . . . . . . . . . . . . Damage Inflicted 13968 | 108 539 298 . 76 3435 1328 451 153 . 2420 4653 449 58 Guns 4157 | 108 294 263 . 76 2086 960 245 125 . . . . . Cannons 4811 | . 191 35 . . 63 . . 28 . 306 3934 196 58 Explosions 4889 | . 54 . . . 1203 368 206 . . 2091 714 253 . Melee 106 | . . . . . 83 . . . . 23 . . . Ramming 5 | . . . . . . . . . . . 5 . . Kinetic 6773 | 108 485 298 . 76 904 235 120 53 . 306 3934 196 58 Thermal 2592 | . . . . . 1245 1093 125 100 . . 29 . . Explosive 4432 | . 54 . . . 1203 . 206 . . 2091 625 253 . Electromagnetic 60 | . . . . . . . . . . . 60 . . Impact 106 | . . . . . 83 . . . . 23 . . . Slashing . | . . . . . . . . . . . . . . Piercing . | . . . . . . . . . . . . . . Highest Corruption 2 | . . . . . . 2 1 1 1 2 . . . Average Corruption 1 | . . . . . . 1 1 1 1 1 . . . Corruption Purged 2 | . . . . . . 2 . . . . . . . Corruption Blocked . | . . . . . . . . . . . . . . Effects 32 | . . . . . . 4 9 8 2 9 . . . Message Errors 7 | . . . . . . . 2 2 1 2 . . . Matter Fused 8 | . . . . . . . 3 3 . 2 . . . Heat Flow Errors 2 | . . . . . . 1 . . . 1 . . . Energy Discharges 4 | . . . . . . 1 1 . . 2 . . . Parts Rejected 1 | . . . . . . 1 . . . . . . . Data Loss (minor) 5 | . . . . . . . 1 1 1 2 . . . Data Loss (major) 2 | . . . . . . . 1 1 . . . . . Misfires 3 | . . . . . . 1 1 1 . . . . . Overload Shots . | . . . . . . . . . . . . . . Overflow Damage 396 | . . . . . 13 174 24 . . 55 85 34 11 Projectiles 96 | . . . . . . . . . . . 85 . 11 Explosions 290 | . . . . . 3 174 24 . . 55 . 34 . Melee 10 | . . . . . 10 . . . . . . . . Knockbacks 33 | . 4 . . . . . . 1 . 3 23 2 . Impact 1 | . . . . . . . . . . . 1 . . Kinetic 30 | . 4 . . . . . . 1 . 3 20 2 . Secondary 2 | . . . . . . . . . . . 2 . . Self-Inflicted Damage 53 | . . . . . . . 26 . . 25 2 . . Shots 2 | . . . . . . . 1 . . 1 . . . Rammed 3 | . . . . . . . . . . . 3 . . Targets Rammed 3 | . . . . . . . . . . . 3 . . Kicked . | . . . . . . . . . . . . . . Crushed . | . . . . . . . . . . . . . . Highest Temperature 240 | . 4 . . . 144 190 60 68 . 135 240 . . Average Temperature 51 | . 3 . . . 26 49 20 31 . 48 69 . . Received Heat Transfer 1543 | . 12 . . . 603 120 60 . . 246 463 30 9 Siege Activations . | . . . . . . . . . . . . . . Robots Corrupted 1 | . . . . . 1 . . . . . . . . Combat Hostiles . | . . . . . . . . . . . . . . Parts Fried 4 | . . . . . 4 . . . . . . . . Impact Corruptions 1 | . . . . . 1 . . . . . . . . Robots Melted 2 | . . . . . 2 . . . . . . . . Combat Hostiles 2 | . . . . . 2 . . . . . . . . Parts Melted 7 | . . . . . 6 1 . . . . . . . Heat Transferred 4901 | . . . . . 2858 1540 194 259 . . 50 . . Parts Sabotaged . | . . . . . . . . . . . . . . Parts Stolen 1 | . . . . . . . . 1 . . . . . Parts Stripped . | . . . . . . . . . . . . . . Power Chain Reactions 1 | . . . . . . . . . . . 1 . . Alert | -11 -10 -10 -10 -9 -8 -7 -7 -7 -7 -6 -6 -6 -6 ------- Run | Yrd Mat Min Exi Min Mat Fac Low Low Zio Pro Fac Low Low Peak Influence 1203 | 15 273 134 . 62 1001 788 . . . . 1203 . . Initial 455 | . 9 47 . . 24 455 . . . . 160 . . Average 349 | 4 118 48 . 5 360 528 . . . . 697 . . Maximum Alert Level 4 | . 1 . . . 3 3 . . . . 4 . . Low Security (%) 43 | 100 84 100 . 100 35 . . . . . 4 . . Level 1 10 | . 15 . . . 27 6 . . . . 6 . . Level 2 28 | . . . . . 28 70 . . . . 33 . . Level 3 17 | . . . . . 8 22 . . . . 53 . . Level 4 . | . . . . . . . . . . . 2 . . Level 5 . | . . . . . . . . . . . . . . High Security . | . . . . . . . . . . . . . . Max Security . | . . . . . . . . . . . . . . Squads Dispatched 38 | . 3 . . . 11 7 . . . 1 16 . . Investigation 8 | . 3 . . . 2 2 . . . . 1 . . Extermination 5 | . . . . . . 3 . . . . 2 . . Reinforcement 17 | . . . . . 7 1 . . . . 9 . . Assault 8 | . . . . . 2 1 . . . 1 4 . . Garrison . | . . . . . . . . . . . . . . Intercept . | . . . . . . . . . . . . . . Searches Triggered . | . . . . . . . . . . . . . . Construction Impeded 8 | . . . . . 4 . . . . . 4 . . Haulers Reinforced 2 | . . . . . . . . . . . 2 . . Active Scanning Responses . | . . . . . . . . . . . . . . Cargo Convoy Interrupts . | . . . . . . . . . . . . . . Stealth | -11 -10 -10 -10 -9 -8 -7 -7 -7 -7 -6 -6 -6 -6 --------- Run | Yrd Mat Min Exi Min Mat Fac Low Low Zio Pro Fac Low Low Distress Signals 11 | . 1 . . . 6 1 . . . . 3 . . Communications Jammed . | . . . . . . . . . . . . . . Distress Signals . | . . . . . . . . . . . . . . Times Spotted 215 | . 14 3 . 3 55 32 13 2 . 28 59 6 . Peak Tracking Total 10 | . 3 3 . 2 7 4 4 1 . 10 8 3 . Tactical Retreats 8 | . . . . 1 2 . . . . 1 4 . . Traps | -11 -10 -10 -10 -9 -8 -7 -7 -7 -7 -6 -6 -6 -6 ------- Run | Yrd Mat Min Exi Min Mat Fac Low Low Zio Pro Fac Low Low Traps Triggered 4 | . 2 . . . . . . . . . 2 . . Indirectly . | . . . . . . . . . . . . . . Trap Hack Attempts . | . . . . . . . . . . . . . . Triggered . | . . . . . . . . . . . . . . Disarmed . | . . . . . . . . . . . . . . Reprogrammed . | . . . . . . . . . . . . . . Reused . | . . . . . . . . . . . . . . Traps Extracted . | . . . . . . . . . . . . . . Installed . | . . . . . . . . . . . . . . Triggered 3 | . . . . . . . . . . 3 . . . Machines | -11 -10 -10 -10 -9 -8 -7 -7 -7 -7 -6 -6 -6 -6 ---------- Run | Yrd Mat Min Exi Min Mat Fac Low Low Zio Pro Fac Low Low Machines Disabled 41 | . . . . . 5 18 . . . 1 17 . . Max in Single Turn 13 | . . . . . 1 13 . . . 1 2 . . Garrison Access 1 | . . . . . . . . . . . 1 . . Machines Repaired . | . . . . . . . . . . . . . . Machines Dismantled . | . . . . . . . . . . . . . . Machines Sabotaged . | . . . . . . . . . . . . . . Overloaded Fab Kills . | . . . . . . . . . . . . . . Hacking | -11 -10 -10 -10 -9 -8 -7 -7 -7 -7 -6 -6 -6 -6 --------- Run | Yrd Mat Min Exi Min Mat Fac Low Low Zio Pro Fac Low Low Machines Accessed 37 | . 9 . 2 . 9 9 . . . . 8 . . Terminals 20 | . 6 . . . 6 5 . . . . 3 . . Fabricators 4 | . . . . . . 2 . . . . 2 . . Repair Stations 3 | . 1 . . . 1 . . . . . 1 . . Recycling Units 4 | . 2 . . . 1 1 . . . . . . . Scanalyzers 2 | . . . . . 1 . . . . . 1 . . Garrison Access 2 | . . . . . . 1 . . . . 1 . . Total Hacks 122 | . 34 . 5 . 31 24 . . . . 28 . . Successful 62 | . 15 . 5 . 10 12 . . . . 20 . . Failed 60 | . 19 . . . 21 12 . . . . 8 . . Catastrophic 15 | . 3 . . . 5 6 . . . . 1 . . Database Lockouts . | . . . . . . . . . . . . . . Manual 31 | . 9 . 1 . 5 10 . . . . 6 . . Terminals 75 | . 28 . . . 23 15 . . . . 9 . . Fabricators 14 | . . . . . . 6 . . . . 8 . . Repair Stations 8 | . 2 . . . 1 . . . . . 5 . . Recycling Units 9 | . 4 . . . 3 2 . . . . . . . Scanalyzers 9 | . . . . . 4 . . . . . 5 . . Garrison Access 2 | . . . . . . 1 . . . . 1 . . Terminal Hacks 29 | . 9 . 5 . 5 6 . . . . 4 . . Record 4 | . . . 4 . . . . . . . . . . Prototype ID Bank 3 | . 3 . . . . . . . . . . . . Branch Access Points 2 | . . . . . . 1 . . . . 1 . . Emergency Access Points 1 | . . . . . . 1 . . . . . . . Machine Index 1 | . . . . . . . . . . . 1 . . Terminal Index 1 | . . . . . . 1 . . . . . . . Alert Level 2 | . . . . . . 2 . . . . . . . Unreport Threat 4 | . . . . . 2 1 . . . . 1 . . Locate Traps 7 | . 4 . . . 2 . . . . . 1 . . Hauler Manifests 3 | . 2 . . . 1 . . . . . . . . Derelict Proto ID Bank 1 | . . . 1 . . . . . . . . . . Fabricator Hacks 10 | . . . . . . 4 . . . . 6 . . Network Status 3 | . . . . . . 2 . . . . 1 . . Load Schematic 5 | . . . . . . 2 . . . . 3 . . Build 2 | . . . . . . . . . . . 2 . . Repair Station Hacks 4 | . 2 . . . . . . . . . 2 . . Scan Component 2 | . 1 . . . . . . . . . 1 . . Repair 2 | . 1 . . . . . . . . . 1 . . Recycling Unit Hacks 3 | . 2 . . . 1 . . . . . . . . Retrieve Components 3 | . 2 . . . 1 . . . . . . . . Scanalyzer 8 | . . . . . 4 . . . . . 4 . . Insert Component 4 | . . . . . 2 . . . . . 2 . . Analyze 4 | . . . . . 2 . . . . . 2 . . Garrison Access Hacks 1 | . . . . . . . . . . . 1 . . Seal Access 1 | . . . . . . . . . . . 1 . . Unauthorized Hacks 7 | . 2 . . . . 2 . . . . 3 . . Terminals 4 | . 2 . . . . . . . . . 2 . . Botnet 4 | . 2 . . . . . . . . . 2 . . Fabricators 3 | . . . . . . 2 . . . . 1 . . Recompile 3 | . . . . . . 2 . . . . 1 . . Repair Stations . | . . . . . . . . . . . . . . Recycling Units . | . . . . . . . . . . . . . . Scanalyzers . | . . . . . . . . . . . . . . Garrison Access . | . . . . . . . . . . . . . . Data Cores Recovered . | . . . . . . . . . . . . . . Used . | . . . . . . . . . . . . . . Hacking Detections 30 | . 8 . . . 9 7 . . . . 6 . . Full Trace Events 4 | . 2 . . . 2 . . . . . . . . Feedback Events . | . . . . . . . . . . . . . . Feedback Blocked . | . . . . . . . . . . . . . . Robot Schematics Acquired . | . . . . . . . . . . . . . . Robots Built . | . . . . . . . . . . . . . . Authchips . | . . . . . . . . . . . . . . Time . | . . . . . . . . . . . . . . Total Robot Build Rating . | . . . . . . . . . . . . . . Part Schematics Acquired 4 | . . . . . 2 . . . . . 2 . . Parts Built 2 | . . . . . . . . . . . 2 . . Authchips 2 | . . . . . . . . . . . 2 . . Time 78 | . . . . . . . . . . . 78 . . Total Part Build Rating 10 | . . . . . . . . . . . 10 . . Parts Repaired 2 | . 1 . . . . . . . . . 1 . . Time 48 | . 26 . . . . . . . . . 22 . . Parts Recycled . | . . . . . . . . . . . . . . Recycled Matter . | . . . . . . . . . . . . . . Retrieved Matter . | . . . . . . . . . . . . . . Retrieved Components 12 | . 3 . . . 9 . . . . . . . . Parts Scanalyzed 4 | . . . . . 2 . . . . . 2 . . Part Schematics Acquired 4 | . . . . . 2 . . . . . 2 . . Parts Damaged . | . . . . . . . . . . . . . . Bothacking | -11 -10 -10 -10 -9 -8 -7 -7 -7 -7 -6 -6 -6 -6 ------------ Run | Yrd Mat Min Exi Min Mat Fac Low Low Zio Pro Fac Low Low Used RIF Installer . | . . . . . . . . . . . . . . Robots Hacked . | . . . . . . . . . . . . . . Non-combat . | . . . . . . . . . . . . . . Combat . | . . . . . . . . . . . . . . Robot Hacks Applied . | . . . . . . . . . . . . . . Relay Couplers Released 3 | . . . . . . . . . . . 3 . . Machine Destruction 3 | . . . . . . . . . . . 3 . . Fabnet Peak Effective % . | . . . . . . . . . . . . . . Robots Rewired 2 | . . . . . . . . . . 2 . . . Allies Hacked . | . . . . . . . . . . . . . . Hacks Repelled . | . . . . . . . . . . . . . . Allies | -11 -10 -10 -10 -9 -8 -7 -7 -7 -7 -6 -6 -6 -6 -------- Run | Yrd Mat Min Exi Min Mat Fac Low Low Zio Pro Fac Low Low Total Allies 4 | . 1 . . 1 . . . . . 2 . . . Largest Group 3 | . 1 1 1 2 1 1 1 1 1 3 1 1 1 Highest-Rated Group 143 | . 60 60 60 92 82 93 94 93 93 143 104 97 97 Highest-Rated Ally 104 | . 60 60 60 61 82 93 94 93 93 95 104 97 97 Total Orders . | . . . . . . . . . . . . . . Ally Attacks 396 | . 40 10 . 15 80 48 17 2 . 58 123 3 . Total Damage 13505 | . 421 145 . 203 2866 2045 746 113 . 1944 4837 89 96 Kills 130 | . 6 3 . 3 32 26 9 . . 14 35 2 . Allies Corrupted . | . . . . . . . . . . . . . . Allies Melted . | . . . . . . . . . . . . . . Intel | -11 -10 -10 -10 -9 -8 -7 -7 -7 -7 -6 -6 -6 -6 ------- Run | Yrd Mat Min Exi Min Mat Fac Low Low Zio Pro Fac Low Low Robot Analysis Total . | . . . . . . . . . . . . . . Derelict Logs Recovered 9 | . . 2 . . . . 1 2 1 1 . 1 1 Drone Launches . | . . . . . . . . . . . . . . Drone Recoveries . | . . . . . . . . . . . . . . Exploration | -11 -10 -10 -10 -9 -8 -7 -7 -7 -7 -6 -6 -6 -6 ------------- Run | Yrd Mat Min Exi Min Mat Fac Low Low Zio Pro Fac Low Low Turns Passed 18458 | 151 1545 1280 729 1353 2196 2546 1453 1349 1954 1358 2221 295 28 Spaces Moved 8144 | 75 550 381 228 405 744 967 563 538 843 867 1566 384 33 Core 4 | 4 . . . . . . . . . . . . . Treads 5401 | 71 550 381 228 405 744 967 563 538 700 254 . . . Legs 199 | . . . . . . . . . . 199 . . . Wheels 427 | . . . . . . . . . . 159 268 . . Hover 2113 | . . . . . . . . . 143 255 1298 384 33 Flight . | . . . . . . . . . . . . . . Fastest Speed 48 | 50 160 320 320 320 240 240 247 247 108 48 52 52 52 Average Speed 195 | 155 242 320 320 320 240 242 249 247 223 135 68 52 52 Slowest Speed 320 | 160 320 320 320 320 320 250 250 247 247 320 180 52 52 Overloaded Moves . | . . . . . . . . . . . . . . Propulsion Burnouts . | . . . . . . . . . . . . . . Robots Hopped . | . . . . . . . . . . . . . . Cave-ins Triggered . | . . . . . . . . . . . . . . Exploration Rate (%) 55 | 5 81 75 61 64 77 25 76 71 80 77 32 54 5 Regions Visited 13 Branch Regions 9 Pre-discovered Areas 5 | . . 3 1 . . . . . . 1 . . . Known Exits Taken 3 | . . . . . . 1 . . . 1 1 . . Unknown Exits Taken 10 | 1 1 1 1 1 1 . 1 1 1 . . 1 . Scrap Searched 1 | . . . . . . . . . . 1 . . . Spaces Dug 22 | . 10 . . 2 2 1 . . . . 7 . . Terrain Destroyed 258 | . 10 . . 2 53 2 23 . . 83 53 30 2 Melee 5 | . . . . 2 2 1 . . . . . . . Projectile 64 | . . . . . 1 . . . . 12 48 1 2 AOE 189 | . 10 . . . 50 1 23 . . 71 5 29 . Terrain Rammed . | . . . . . . . . . . . . . . Walls Destroyed . | . . . . . . . . . . . . . . Machines Disabled . | . . . . . . . . . . . . . . Actions | -11 -10 -10 -10 -9 -8 -7 -7 -7 -7 -6 -6 -6 -6 --------- Run | Yrd Mat Min Exi Min Mat Fac Low Low Zio Pro Fac Low Low Total 9979 | 94 704 409 230 445 972 1103 582 549 913 1000 2474 464 40 Wait 1021 | . 84 8 . 27 37 23 . . 42 54 675 70 1 Move 8131 | 74 549 380 227 404 743 966 562 537 842 866 1565 383 33 Hop . | . . . . . . . . . . . . . . Pick Up 111 | 7 23 . 2 . 25 20 1 . 3 5 23 . 2 Fast Attach 52 | 6 3 1 . . 7 9 . 2 2 8 14 . . Attach 41 | . . . . 1 7 4 . 1 7 7 13 1 . Detach 10 | . . 1 . . 2 1 . 1 . 4 1 . . Swap 85 | . 5 2 . 4 26 13 3 1 3 12 14 2 . Drop 122 | . 9 . 1 . 29 28 1 1 14 5 32 . 2 Fire 386 | 7 31 17 . 7 92 38 15 6 . 29 134 8 2 Melee 8 | . . . . 2 4 1 . . . 1 . . . Ram 3 | . . . . . . . . . . . 3 . . Kick . | . . . . . . . . . . . . . . Crush . | . . . . . . . . . . . . . . Escape Stasis . | . . . . . . . . . . . . . . Rewire 9 | . . . . . . . . . . 9 . . . Trap . | . . . . . . . . . . . . . . Miscellaneous . | . . . . . . . . . . . . . . Route ------- -11/Scrapyard -10/Materials (discovered 3 exits: [*Mat x2] / [*Min]) -10/Mines (discovered 2 exits: [*Mat] / *Exi) -10/Exiles -9/Mines -8/Materials -7/Factory (discovered 3 exits: *Fac / *Low x2) -7/Lower Caves -7/Lower Caves (discovered 2 exits: Fac / [*Zio]) -7/Zion (discovered 2 exits: Dee / [*Pro]) -6/Proximity Caves -6/Factory (discovered 2 exits: *Low x2) -6/Lower Caves -6/Lower Caves History --------- Turn | Location | Event 11 | -11/Scrapyard | Discovered new exit (range 15) 152 | -11/Scrapyard | Entered Materials 304 | -10/Materials | Build established: Mutant 693 | -10/Materials | Discovered new exit (range 8) 1100 | -10/Materials | Repaired Lgt. Cannon 1183 | -10/Materials | Discovered new exit (range 4) 1231 | -10/Materials | Discovered new exit (range 8) 1697 | -10/Materials | Entered Mines 1707 | -10/Mines | Met a Derelict bent on vengeance 1764 | -10/Mines | Learned location of Zion (-7) 2097 | -10/Mines | YI-UF0 nonchalantly dropped a Grenade Launcher on the ground 2112 | -10/Mines | Murdered YI-UF0 2128 | -10/Mines | Found Prototype Launcher 2128 | -10/Mines | Identified YI-UF0's Doublenader 2278 | -10/Mines | Discovered new exit (range 8) 2713 | -10/Mines | Learned location of Storage (-9) 2965 | -10/Mines | Deemed a non-threat by the Exiles lab entrance 2965 | -10/Mines | Discovered new exit (range 5) 2977 | -10/Mines | Entered Exiles 3054 | -10/Exiles | Met 8R-AWN 3109 | -10/Exiles | Met EX-HEX 3198 | -10/Exiles | Met EX-BIN 3237 | -10/Exiles | Aligned with FarCom system 3240 | -10/Exiles | Given EX-Vault access code 3323 | -10/Exiles | Opened EX-Vault 3339 | -10/Exiles | Found Superbattery 3407 | -10/Exiles | Warned to stay clear of 0b10 Research branches 3453 | -10/Exiles | Exiles lab attacked by MAIN.C 3678 | -10/Exiles | Discovered new exit (range 10) 3706 | -10/Exiles | Left Exiles lab with Superbattery 3706 | -10/Exiles | Entered Mines 3784 | -9/Mines | Assembled infested the area 3789 | -9/Mines | Assisted by a Guerilla fighting off Assembled 4720 | -9/Mines | Received a Mining Laser from a helpful Derelict 4985 | -9/Mines | Core integrity fell below 50% 5034 | -9/Mines | Discovered new exit (range 6) 5059 | -9/Mines | Entered Materials 5059 | -8/Materials | Evolved 4 slots: Propulsion x1, Utility x3 6428 | -8/Materials | Build established: Scavenger-Mutant 6921 | -8/Materials | Discovered new exit (range 4) 7059 | -8/Materials | First assault squad dispatched 7125 | -8/Materials | Core integrity fell below 50% 7255 | -8/Materials | Entered Factory 7255 | -7/Factory | Evolved 2 slots: Propulsion x1, Utility x1 7896 | -7/Factory | Build established: Mutant 8136 | -7/Factory | Discovered new exit (range 7) 8556 | -7/Factory | Identified exit to Lower Caves 9655 | -7/Factory | First assault squad dispatched 9801 | -7/Factory | Entered Lower Caves 9802 | -7/Lower Caves | Build established: Hacker-Mutant 9802 | -7/Lower Caves | Encountered a Warlord checkpoint 10283 | -7/Lower Caves | Learned 4 Factory zone layouts 10948 | -7/Lower Caves | Attracted the attention of an 0b10 checkpoint 11202 | -7/Lower Caves | Discovered new exit (range 13) 11254 | -7/Lower Caves | Entered another Lower Caves area 12010 | -7/Lower Caves | Discovered new exit (range 13) 12027 | -7/Lower Caves | Learned Factory non-interactive machine intel 12423 | -7/Lower Caves | Identified exit to Factory 12603 | -7/Lower Caves | Entered Zion 12686 | -7/Zion | System corruption cleaned by Quarantine Array 13478 | -7/Zion | Identified exit to Deep Caves 14539 | -7/Zion | Discovered new exit (range 9) 14557 | -7/Zion | Entered Proximity Caves 14567 | -6/Proximity Caves | Attracted the attention of an 0b10 outpost 14609 | -6/Proximity Caves | Destroyed 7 combat bots 14613 | -6/Proximity Caves | Lost 3 parts (2n1u) 14777 | -6/Proximity Caves | Core integrity fell below 50% 14805 | -6/Proximity Caves | Lost 3 parts (3n) 15063 | -6/Proximity Caves | Acquired the password to a Derelict Tinkerer's latest research 15276 | -6/Proximity Caves | Build established: Scavenger-Mutant 15316 | -6/Proximity Caves | Caught by Unaware searching for contraband prototypes 15439 | -6/Proximity Caves | Caught by Unaware searching for contraband prototypes 15488 | -6/Proximity Caves | Lost 4 parts (1p1n1u1w) 15491 | -6/Proximity Caves | Discovered exit to Factory (range 9) 15749 | -6/Proximity Caves | Build established: Hacker-Mutant 15915 | -6/Proximity Caves | Entered Factory 15915 | -6/Factory | Evolved 2 slots: Propulsion x1, Utility x1 15917 | -6/Factory | Loaded intel: 178 non-interactive machine locations 16251 | -6/Factory | Repaired Gravmag System 16420 | -6/Factory | Identified exit to Lower Caves 16480 | -6/Factory | Fabricated Gravmag Array (x1) 16807 | -6/Factory | Spotted B-75 Beast 16875 | -6/Factory | Allies destroyed B-75 Beast 17315 | -6/Factory | First assault squad dispatched 17359 | -6/Factory | Core integrity fell below 50% 17415 | -6/Factory | Lost 7 parts (1p2n2u2w) 17691 | -6/Factory | Fabricated Gravmag Array (x1) 17880 | -6/Factory | Core integrity fell below 20% 18136 | -6/Factory | Entered Lower Caves 18137 | -6/Lower Caves | Encountered a Warlord checkpoint 18272 | -6/Lower Caves | Learned Factory security intel 18289 | -6/Lower Caves | Attracted the attention of an 0b10 checkpoint 18308 | -6/Lower Caves | Spotted B-75 Beast 18416 | -6/Lower Caves | Discovered new exit (range 6) 18431 | -6/Lower Caves | Entered another Lower Caves area 18435 | -6/Lower Caves | Learned Factory emergency access door positions 18459 | -6/Lower Caves | Destroyed by Player 2 with Heavy Laser Last Messages --------------- 18291_ Destroyed VTOL Module. 18291_ S-27 Virus destroyed. 18293_ Gravmag Array destroyed. 18295_ S-27 Virus destroyed. 18299_ Y-54 Guardian destroyed. 18308_ Acquired 38 matter. Player 2: "I may have this decent Gunner setup here, but some support would be nice." 18416_ EXIT=FOUND LOCATION=UNKNOWN GOAL=ESCAPE 18435_ Acquired derelict log, extracted data. Data stored: Factory emergency access points. 18447_ Dropped Matter Compressor. 18447_ Acquired Matter Compressor. 18450_ Dropped Matter Compressor. 18451_ Extracted 152 matter. 18451_ Acquired Matter Compressor. 18455_ Destroyed Neutrino Core. 18458_ Acquired 4 matter. Map ----- +----------------------------------------------------+ | ?????????????????????????????????????????????????? | | ?????????????????????????????????????????????????? | | ?????????????????????????????????????????????????? | | ?????????????????????????????????????????????????? | | ?????????????????????????????????????????????????? | | ?????????????????????????????????????????????????? | | ?????????????????????????????????????????????????? | | ?????????????????????????????????????????????????? | | ????????????????????????##???????????????????????? | | ????????????????????#### #???????????????????????? | | ???????????????????## #"#????????????????????????? | | ??????# ?????????## ##????????????????????????? | | ?## # ######## ##???????????????????????? | | ?# #???????????????????????? | | #####???????????????????? | | ####### # ## #???????????????????? | | ??????????# # #????????????????????? | | ?? ??????????????# ## #????????????????????? | | ?????????????????# ### ##????????????????????? | | ?????????????????# #?## @ #?????????????????????? | | ?????????????????# #??## #?????????????????????? | | ?????????????????# #???# #?????????????????????? | | ?????????????????# #???# #?????????????????????? | | ????????????????? #???# #?????????????????????? | | ????????????????? #???# #?????????????????????? | | ?????????????????####???#@S#?????????????????????? | | ????????????????????????# ??????????????????? | | ????????????????????????# #???????????????? | | ???????????????????????? #### #???????????????? | | ???????????????????????? ???? #??????????????? | | ??????????????????????? ????? #??????????????? | | ??????????????????????? ??????####??????????????? | | ??????????????????????? ????????????????????????? | | ?????????????????????? ????????????????????????? | | ?????????????????????? ????????????????????????? | | ?????????????????????? ##????????????????????????? | | ????????????????????? #??????????????????????????? | | ????????????????????? ???????????????????????????? | | ???????????????????? ???????????????????????????? | | ???????????????????? ????????????????????????????? | | ????????????????????#????????????????????????????? | | ?????????????????????????????????????????????????? | | ?????????????????????????????????????????????????? | | ?????????????????????????????????????????????????? | | ?????????????????????????????????????????????????? | | ?????????????????????????????????????????????????? | | ?????????????????????????????????????????????????? | | ?????????????????????????????????????????????????? | | ?????????????????????????????????????????????????? | | ?????????????????????????????????????????????????? | +----------------------------------------------------+ Best States ------------- Heat Dissipation 64 Energy Generation 18 Energy Capacity 1660 Matter Stores 300 Matter Capacity 300 Sight Range 22 Terrain Scan Density 10 Jamming Range 12 Armor Coverage 225 Resistance: KI 30 Resistance: EM 20 Evasion (%) 55 Targeting Accuracy 8 Recoil Reduction 4 Offensive Hacking 20 Defensive Hacking 10 Authchip Count 2 Item Schematics ----------------- Heat Sink | -8/Materials | Scanalyzed Lgt. Treads | -8/Materials | Scanalyzed Gravmag Array | -6/Factory | Scanalyzed Recoil Stabilizer | -6/Factory | Scanalyzed Robot Schematics ------------------ None Fabricated ------------ Gravmag Array | x1 | -6/Factory | Authchip Gravmag Array | x1 | -6/Factory | Authchip Alien Tech Used ----------------- None Achievements -------------- None Challenges ------------ None Player 2 | -11 -10 -10 -10 -9 -8 -7 -7 -7 -7 -6 -6 -6 -6 ---------- Run | Yrd Mat Min Exi Min Mat Fac Low Low Zio Pro Fac Low Low Slots Evolved 8 | . . . . 4 2 . . . . 2 . . . Power . | . . . . . . . . . . . . . . Propulsion 4 | . . . . 1 2 . . . . 1 . . . Utility 3 | . . . . 2 . . . . . 1 . . . Weapon 1 | . . . . 1 . . . . . . . . . Parts Attached 128 | . 19 . . 1 32 22 4 . 1 5 42 2 . Parts Lost 27 | . . . . . 1 3 1 . . . 22 . . Damage Taken 6596 | . 332 81 . 265 1084 838 357 71 . 284 3284 . . Core 1018 | . 78 9 . 14 176 133 63 . . 48 497 . . Player 2/Cogmind (%) 54 | . 78 100 . 26 58 84 100 . . 14 60 . . Absorbed by Shields . | . . . . . . . . . . . . . . Damage Inflicted 13202 | . 421 145 . 162 2866 2045 746 113 . 1682 4837 89 96 Player 2/Cogmind (%) 48 | . 43 32 . 68 45 60 62 42 . 41 50 16 62 Combat Hostiles Destroyed 95 | . 5 3 . 2 25 17 9 . . 10 22 2 . Player 2/Cogmind (%) 52 | . 45 75 . 66 51 70 69 . . 40 47 33 . Game ------ Seed CobblerPersonalCycler Manual? 0 Play Time 01:29:01 Cumulative 222.9 hours Start 2025.01.12 @ 18:31:34 End 2025.01.12 @ 23:57:24 Sessions 4 Manual Loads 0 Difficulty Rogue Special Mode AFD2020/Player2 Game No. 56 Rogue 55 Adventurer 1 Explorer 0 Win Type - Total 19 Types 5/3/6/0/0/0/5/0/0 Lore% 59 Gallery% 75 Achievement% 68 Wizard Run 0 Options --------- Layout 0 ASCII 0 Keyboard 0 Movement Mouse Keybinds 0 Fullscreen 1 Font 18/Terminus Map View 76x50 Zoom Use 0% Tactical HUD 1 Map Filters NONE Filters NONE Steam 0 RUN: 5c108802-8d24-4a39-9a9c-46c6b5bd29fb